[Event "EYTCC Open U18 2022"]
[Site "Thessaloniki"]
[Date "2022.07.16"]
[Round "5.33"]
[White "Risteski, Emil"]
[Black "Stoimenidis, Dimitrios"]
[Result "1-0"]
[ECO "A05"]
[WhiteElo "2405"]
[BlackElo "1993"]
[Annotator "ChessBase"]
[PlyCount "75"]
[EventDate "2022.07.12"]
[EventType "team-tourn"]
[EventCountry "GRE"]
[SourceTitle "playchess.com"]
[Source "ChessBase"]
[SourceQuality "1"]
[WhiteTeam "Macedonia"]
[BlackTeam "Greece"]
[WhiteTeamCountry "MKD"]
[BlackTeamCountry "GRE"]
[TimeControl "40/5400+30:1800+30"]

1. Nf3 {[%emt 0:00:12]} Nf6 {[%emt 0:00:08]} 2. g3 {[%emt 0:00:05]} d5 {[%emt 0:00:04]} 3. Bg2 {[%emt 0:00:06]} c6 {[%emt 0:00:05]} 4. O-O {[%emt 0:00:08]} Bf5 {[%emt 0:00:12]} 5. d3 {[%emt 0:00:10]} h6 {[%emt 0:02:27]} 6. c4 {[%emt 0:00:17]} dxc4 {[%emt 0:02:00]} 7. Ne5 {[%emt 0:00:21]} Nbd7 {[%emt 0:05:26]} 8. Nxc4 {[%emt 0:00:39]} e5 {[%emt 0:04:25]} 9. Nc3 {[%emt 0:03:16]} Be6 {[%emt 0:04:09]} 10. a3 {[%emt 0:03:30]} Be7 {[%emt 0:01:14]} 11. b4 {[%emt 0:01:01]} O-O {[%emt 0:01:38]} 12. Bb2 {[%emt 0:05:39]} Qc7 {[%emt 0:02:44]} 13. Rc1 {[%emt 0:05:36]} Rac8 {[%emt 0:01:38]} 14. Rc2 {[%emt 0:03:59]} Rfd8 {[%emt 0:12:59]} 15. Qa1 {[%emt 0:01:01]} Qb8 {[%emt 0:09:51]} 16. Nb1 {[%emt 0:03:54]} Bd6 {[%emt 0:01:04]} 17. Nxd6 {[%emt 0:00:45]} Qxd6 {[%emt 0:00:08]} 18. Nd2 {[%emt 0:00:17]} Re8 {[%emt 0:04:38]} 19. Nc4 {[%emt 0:07:14]} Bxc4 {[%emt 0:01:25]} 20. Rxc4 {[%emt 0:04:04]} Nb6 {[%emt 0:05:24]} 21. Rc5 {[%emt 0:05:03]} Nfd7 {[%emt 0:01:36]} 22. Ra5 {[%emt 0:03:35]} a6 {[%emt 0:01:22]} 23. f4 {[%emt 0:14:43]} Nd5 {[%emt 0:06:38]} 24. fxe5 {[%emt 0:03:11]} Qe6 {[%emt 0:04:00]} 25. Be4 {[%emt 0:03:01]} g6 {[%emt 0:03:16]} 26. Qc1 {[%emt 0:01:20]} Kg7 {[%emt 0:02:26]} 27. Bg2 {[%emt 0:02:52]} Kh7 {[%emt 0:05:01]} 28. e4 {[%emt 0:00:26]} Nc7 {[%emt 0:00:56]} 29. Bh3 {[%emt 0:13:44]} Qxh3 {[%emt 0:04:06]} 30. Rxf7+ {[%emt 0:00:06]} Kg8 {[%emt 0:00:06]} 31. e6 {[%emt 0:00:02]} Nxe6 {[%emt 0:04:24]} 32. Rxd7 {[%emt 0:00:05]} Rcd8 {[%emt 0:09:32]} 33. Rxd8 {[%emt 0:03:15]} Rxd8 {[%emt 0:00:01]} 34. Qc3 {[%emt 0:04:28]} Rf8 {[%emt 0:01:48]} 35. Qh8+ {[%emt 0:00:26]} Kf7 {[%emt 0:00:04]} 36. Qh7+ {[%emt 0:00:06]} Ke8 {[%emt 0:00:14]} 37. Qxg6+ {[%emt 0:00:04]} Ke7 {[%emt 0:00:41]} 38. Rf5 {[%emt 0:00:27]} 1-0

[Event "EYTCC Open U18 2022"]
[Site "Thessaloniki"]
[Date "2022.07.16"]
[Round "5.34"]
[White "Karamichos, Michail"]
[Black "Veljanoski, Andrej"]
[Result "0-1"]
[ECO "C25"]
[WhiteElo "1839"]
[BlackElo "2162"]
[Annotator "ChessBase"]
[PlyCount "108"]
[EventDate "2022.07.12"]
[EventType "team-tourn"]
[EventCountry "GRE"]
[SourceTitle "playchess.com"]
[Source "ChessBase"]
[SourceQuality "1"]
[WhiteTeam "Greece"]
[BlackTeam "Macedonia"]
[WhiteTeamCountry "GRE"]
[BlackTeamCountry "MKD"]
[TimeControl "40/5400+30:1800+30"]

1. e4 {[%emt 0:00:05]} e5 {[%emt 0:00:05]} 2. Nc3 {[%emt 0:00:09]} Nc6 {[%emt 0:00:22]} 3. g3 {[%emt 0:00:29]} Nf6 {[%emt 0:01:38]} 4. Bg2 {[%emt 0:00:16]} a6 {[%emt 0:01:46]} 5. Nge2 {[%emt 0:00:31]} Bc5 {[%emt 0:00:09]} 6. h3 {[%emt 0:03:32]} d6 {[%emt 0:00:11]} 7. O-O {[%emt 0:00:09]} O-O {[%emt 0:17:53]} 8. d3 {[%emt 0:02:54]} Be6 {[%emt 0:07:51]} 9. Kh2 {[%emt 0:07:37]} d5 {[%emt 0:09:00]} 10. Bg5 {[%emt 0:03:26]} dxe4 {[%emt 0:03:09]} 11. Nxe4 {[%emt 0:03:01]} Be7 {[%emt 0:00:16]} 12. Nxf6+ {[%emt 0:01:47]} Bxf6 {[%emt 0:00:12]} 13. Bxf6 {[%emt 0:00:09]} Qxf6 {[%emt 0:00:09]} 14. Nc3 {[%emt 0:03:59]} Nd4 {[%emt 0:04:16]} 15. f4 {[%emt 0:02:23]} exf4 {[%emt 0:04:18]} 16. Rxf4 {[%emt 0:00:36]} Qd8 {[%emt 0:10:07]} 17. Qd2 {[%emt 0:08:42]} c6 {[%emt 0:07:32]} 18. Raf1 {[%emt 0:06:20]} Nb5 {[%emt 0:05:59]} 19. Ne4 {[%emt 0:03:17]} Nd6 {[%emt 0:03:28]} 20. Qc3 {[%emt 0:18:05]} Nxe4 {[%emt 0:02:14]} 21. Bxe4 {[%emt 0:00:31]} Qd6 {[%emt 0:04:06]} 22. a4 {[%emt 0:16:23]} Rae8 {[%emt 0:02:33]} 23. R1f2 {[%emt 0:00:54]} h6 {[%emt 0:05:15]} 24. b4 {[%emt 0:00:56]} Re7 {[%emt 0:00:24]} 25. a5 {[%emt 0:01:38]} Rc8 {[%emt 0:02:10]} 26. Qb2 {[%emt 0:01:11]} c5 {[%emt 0:01:13]} 27. b5 {[%emt 0:00:19]} axb5 {[%emt 0:00:45]} 28. Qxb5 {[%emt 0:00:06]} Bd5 {[%emt 0:00:21]} 29. Re2 {[%emt 0:01:53]} Rce8 {[%emt 0:02:14]} 30. Ref2 {[%emt 0:02:46]} Bxe4 {[%emt 0:00:31]} 31. dxe4 {[%emt 0:00:05]} f6 {[%emt 0:00:44]} 32. Re2 {[%emt 0:03:11]} Re5 {[%emt 0:02:23]} 33. Qxb7 {[%emt 0:01:15]} Rb8 {[%emt 0:00:27]} 34. Qa7 {[%emt 0:03:17]} Re7 {[%emt 0:00:05]} 35. e5 {[%emt 0:02:48]} fxe5 {[%emt 0:00:05]} 36. Qxe7 {[%emt 0:01:10]} Qxe7 {[%emt 0:00:02]} 37. Rfe4 {[%emt 0:00:11]} Qc7 {[%emt 0:00:28]} 38. Rxe5 {[%emt 0:00:09]} Qxa5 {[%emt 0:00:05]} 39. Re8+ {[%emt 0:00:09]} Rxe8 {[%emt 0:00:06]} 40. Rxe8+ {[%emt 0:00:00]} Kf7 {[%emt 0:00:00]} 41. Re2 {[%emt 0:00:23]} c4 {[%emt 0:02:36]} 42. Kg2 {[%emt 0:00:09]} Qd5+ {[%emt 0:00:27]} 43. Kf2 {[%emt 0:00:10]} g5 {[%emt 0:00:59]} 44. g4 {[%emt 0:00:40]} Qh1 {[%emt 0:00:24]} 45. Kg3 {[%emt 0:00:06]} Qg1+ {[%emt 0:00:05]} 46. Rg2 {[%emt 0:00:09]} Qe3+ {[%emt 0:00:05]} 47. Kh2 {[%emt 0:00:07]} Ke6 {[%emt 0:00:03]} 48. Rg3 {[%emt 0:00:08]} Qf2+ {[%emt 0:01:49]} 49. Rg2 {[%emt 0:00:07]} Qf4+ {[%emt 0:00:05]} 50. Kg1 {[%emt 0:00:05]} Kd5 {[%emt 0:00:06]} 51. Kh1 {[%emt 0:00:28]} Kd4 {[%emt 0:00:05]} 52. Kg1 {[%emt 0:00:05]} Kc3 {[%emt 0:00:06]} 53. Kh1 {[%emt 0:00:05]} Qe4 {[%emt 0:00:15]} 54. Kg1 {[%emt 0:00:06]} Qxc2 {[%emt 0:00:08]} 0-1

[Event "EYTCC Open U18 2022"]
[Site "Thessaloniki"]
[Date "2022.07.16"]
[Round "5.35"]
[White "Jordanov, Mihail"]
[Black "Tagkaloglou, Savvas Stefanos"]
[Result "1-0"]
[ECO "B12"]
[WhiteElo "2158"]
[BlackElo "1724"]
[Annotator "ChessBase"]
[PlyCount "75"]
[EventDate "2022.07.12"]
[EventType "team-tourn"]
[EventCountry "GRE"]
[SourceTitle "playchess.com"]
[Source "ChessBase"]
[SourceQuality "1"]
[WhiteTeam "Macedonia"]
[BlackTeam "Greece"]
[WhiteTeamCountry "MKD"]
[BlackTeamCountry "GRE"]
[TimeControl "40/5400+30:1800+30"]

1. e4 {[%emt 0:00:05]} c6 {[%emt 0:00:05]} 2. d4 {[%emt 0:00:13]} d5 {[%emt 0:00:05]} 3. e5 {[%emt 0:00:22]} c5 {[%emt 0:00:06]} 4. dxc5 {[%emt 0:00:14]} e6 {[%emt 0:00:05]} 5. a3 {[%emt 0:00:30]} Bxc5 {[%emt 0:00:12]} 6. b4 {[%emt 0:00:51]} Bb6 {[%emt 0:00:07]} 7. Qg4 {[%emt 0:01:02]} Kf8 {[%emt 0:11:12]} 8. Nf3 {[%emt 0:04:19]} Qc7 {[%emt 0:10:22]} 9. Bd3 {[%emt 0:02:31]} Nc6 {[%emt 0:04:20]} 10. Bb2 {[%emt 0:03:32]} Nge7 {[%emt 0:03:39]} 11. O-O {[%emt 0:03:11]} Nf5 {[%emt 0:02:50]} 12. Nbd2 {[%emt 0:16:15]} h5 {[%emt 0:12:38]} 13. Qf4 {[%emt 0:07:04]} Nce7 {[%emt 0:06:18]} 14. c4 {[%emt 0:11:48]} Qd8 {[%emt 0:06:40]} 15. Qg5 {[%emt 0:11:49]} Bd7 {[%emt 0:12:09]} 16. Rfd1 {[%emt 0:04:58]} Ba4 {[%emt 0:01:59]} 17. Re1 {[%emt 0:01:26]} dxc4 {[%emt 0:01:18]} 18. Bxc4 {[%emt 0:01:13]} Nc6 {[%emt 0:02:44]} 19. Qf4 {[%emt 0:05:14]} Ncd4 {[%emt 0:04:00]} 20. Rac1 {[%emt 0:05:30]} g6 {[%emt 0:01:43]} 21. Ne4 {[%emt 0:03:20]} Kg7 {[%emt 0:00:48]} 22. Nd6 {[%emt 0:03:25]} Nxf3+ 23. Qxf3 {[%emt 0:00:53]} Bc6 {[%emt 0:02:12]} 24. Qf4 {[%emt 0:01:35]} a6 {[%emt 0:01:39]} 25. Red1 {[%emt 0:02:36]} Qe7 {[%emt 0:00:48]} 26. Rd3 {[%emt 0:01:22]} h4 {[%emt 0:03:00]} 27. Rcd1 {[%emt 0:01:54]} Rh5 {[%emt 0:01:10]} 28. Ne4 {[%emt 0:02:03]} h3 {[%emt 0:04:20]} 29. g3 {[%emt 0:01:12]} Nh6 {[%emt 0:01:01]} 30. Bc1 {[%emt 0:02:42]} Rh8 {[%emt 0:01:06]} 31. Qf6+ {[%emt 0:00:44]} Qxf6 {[%emt 0:00:06]} 32. exf6+ {[%emt 0:00:04]} Kf8 {[%emt 0:00:55]} 33. Rd8+ {[%emt 0:00:53]} Bxd8 {[%emt 0:00:05]} 34. Rxd8+ {[%emt 0:00:03]} Be8 {[%emt 0:00:06]} 35. Nd6 {[%emt 0:00:09]} Kg8 {[%emt 0:00:21]} 36. Rxe8+ {[%emt 0:00:40]} Kh7 {[%emt 0:00:08]} 37. Rxh8+ {[%emt 0:00:08]} Kxh8 {[%emt 0:00:38]} 38. Bxh6 {[%emt 0:00:03]} 1-0

[Event "EYTCC Open U18 2022"]
[Site "Thessaloniki"]
[Date "2022.07.16"]
[Round "5.36"]
[White "Karakotsios, Konstantinos"]
[Black "Zlatkov, Anton"]
[Result "0-1"]
[ECO "E91"]
[WhiteElo "1376"]
[BlackElo "2149"]
[Annotator "ChessBase"]
[PlyCount "54"]
[EventDate "2022.07.12"]
[EventType "team-tourn"]
[EventCountry "GRE"]
[SourceTitle "playchess.com"]
[Source "ChessBase"]
[SourceQuality "1"]
[WhiteTeam "Greece"]
[BlackTeam "Macedonia"]
[WhiteTeamCountry "GRE"]
[BlackTeamCountry "MKD"]
[TimeControl "40/5400+30:1800+30"]

1. d4 {[%emt 0:00:05]} Nf6 {[%emt 0:00:11]} 2. c4 {[%emt 0:00:15]} g6 {[%emt 0:00:06]} 3. Nc3 {[%emt 0:00:09]} Bg7 {[%emt 0:00:05]} 4. e4 {[%emt 0:00:06]} d6 {[%emt 0:00:06]} 5. Nf3 {[%emt 0:00:16]} O-O {[%emt 0:00:08]} 6. Be2 {[%emt 0:00:07]} Nbd7 {[%emt 0:01:03]} 7. O-O {[%emt 0:00:58]} e5 {[%emt 0:00:21]} 8. d5 {[%emt 0:00:23]} Nc5 {[%emt 0:00:35]} 9. Qc2 {[%emt 0:00:36]} a5 {[%emt 0:00:11]} 10. Be3 {[%emt 0:01:23]} Nfd7 {[%emt 0:06:03]} 11. Nd2 {[%emt 0:08:35]} f5 {[%emt 0:05:39]} 12. f3 {[%emt 0:12:27]} Nf6 {[%emt 0:15:07]} 13. Nb3 {[%emt 0:08:16]} b6 {[%emt 0:01:13]} 14. Nxc5 {[%emt 0:02:42]} bxc5 {[%emt 0:00:44]} 15. a3 {[%emt 0:04:01]} Bd7 {[%emt 0:15:57]} 16. b4 {[%emt 0:21:48]} axb4 {[%emt 0:00:38]} 17. axb4 {[%emt 0:02:38]} cxb4 {[%emt 0:00:01]} 18. Nb5 {[%emt 0:00:53]} fxe4 {[%emt 0:05:11]} 19. fxe4 {[%emt 0:13:15]} b3 {[%emt 0:00:34]} 20. Qxb3 {[%emt 0:01:26]} Rxa1 {[%emt 0:00:37]} 21. Rxa1 {[%emt 0:00:02]} Nxe4 {[%emt 0:00:43]} 22. Ra7 {[%emt 0:00:56]} Qh4 {[%emt 0:09:45]} 23. Qd1 {[%emt 0:08:11]} Bxb5 {[%emt 0:02:19]} 24. cxb5 {[%emt 0:00:02]} Bh6 25. Bxh6 {[%emt 0:07:38]} Qf2+ {[%emt 0:00:23]} 26. Kh1 {[%emt 0:00:04]} Qxa7 {[%emt 0:00:05]} 27. b6 {[%emt 0:00:05]} Qxb6 {[%emt 0:00:14]} 0-1

[Event "EYTCC Open U18 2022"]
[Site "Thessaloniki"]
[Date "2022.07.16"]
[Round "5.37"]
[White "Betsakou, Sofia"]
[Black "Magalakis, Stefanos"]
[Result "0-1"]
[ECO "A46"]
[WhiteElo "1412"]
[BlackElo "2181"]
[Annotator "ChessBase"]
[PlyCount "100"]
[EventDate "2022.07.12"]
[EventType "team-tourn"]
[EventCountry "GRE"]
[SourceTitle "playchess.com"]
[Source "ChessBase"]
[SourceQuality "1"]
[WhiteTeam "Greece"]
[BlackTeam "Greece"]
[WhiteTeamCountry "GRE"]
[BlackTeamCountry "GRE"]
[TimeControl "40/5400+30:1800+30"]

1. d4 {[%emt 0:00:02]} Nf6 {[%emt 0:00:11]} 2. Nf3 {[%emt 0:00:12]} e6 {[%emt 0:00:30]} 3. Bg5 {[%emt 0:00:16]} h6 {[%emt 0:00:14]} 4. Bh4 {[%emt 0:00:09]} c5 {[%emt 0:00:07]} 5. e3 {[%emt 0:00:21]} cxd4 {[%emt 0:01:35]} 6. exd4 {[%emt 0:00:12]} b6 {[%emt 0:00:10]} 7. Bd3 {[%emt 0:00:55]} Bb7 {[%emt 0:00:06]} 8. Nbd2 {[%emt 0:00:28]} Be7 {[%emt 0:01:35]} 9. Bxf6 {[%emt 0:03:26]} Bxf6 {[%emt 0:00:15]} 10. c3 {[%emt 0:01:11]} a6 {[%emt 0:05:16]} 11. O-O {[%emt 0:03:04]} O-O {[%emt 0:03:07]} 12. Re1 {[%emt 0:02:48]} d6 {[%emt 0:04:14]} 13. Nf1 {[%emt 0:05:09]} Nd7 {[%emt 0:05:08]} 14. a4 {[%emt 0:06:16]} Be7 {[%emt 0:07:41]} 15. N3d2 {[%emt 0:07:35]} Re8 {[%emt 0:11:58]} 16. f3 {[%emt 0:04:03]} Bf8 {[%emt 0:04:33]} 17. Be4 {[%emt 0:05:35]} d5 {[%emt 0:14:32]} 18. Bc2 {[%emt 0:06:20]} Bd6 {[%emt 0:02:55]} 19. Qe2 {[%emt 0:10:30]} Nf6 {[%emt 0:01:49]} 20. g3 {[%emt 0:04:30]} e5 {[%emt 0:00:57]} 21. Qg2 {[%emt 0:06:55]} Qc7 {[%emt 0:05:32]} 22. dxe5 {[%emt 0:04:31]} Bc5+ {[%emt 0:05:08]} 23. Kh1 {[%emt 0:00:41]} Rxe5 {[%emt 0:00:10]} 24. Nb3 {[%emt 0:01:50]} Rae8 {[%emt 0:00:35]} 25. Rxe5 {[%emt 0:01:14]} Qxe5 {[%emt 0:00:14]} 26. Bd3 {[%emt 0:05:52]} d4 {[%emt 0:02:19]} 27. c4 {[%emt 0:03:26]} Qh5 {[%emt 0:09:56]} 28. Nbd2 {[%emt 0:03:19]} Bb4 {[%emt 0:01:14]} 29. Ne4 {[%emt 0:03:08]} Nxe4 {[%emt 0:01:01]} 30. Bxe4 {[%emt 0:01:12]} Bxe4 {[%emt 0:08:00]} 31. fxe4 {[%emt 0:00:09]} Qg4 {[%emt 0:00:30]} 32. Nd2 {[%emt 0:05:05]} Bxd2 {[%emt 0:00:40]} 33. Qxd2 {[%emt 0:00:07]} Rxe4 {[%emt 0:00:45]} 34. Re1 {[%emt 0:04:15]} d3 {[%emt 0:00:47]} 35. Kg1 {[%emt 0:01:52]} Rxe1+ {[%emt 0:00:43]} 36. Qxe1 {[%emt 0:00:05]} Qxc4 {[%emt 0:00:10]} 37. Qd1 {[%emt 0:00:52]} Qd4+ {[%emt 0:00:32]} 38. Kf1 {[%emt 0:00:16]} Qe3 {[%emt 0:00:57]} 39. Qe1 {[%emt 0:01:04]} Qf3+ {[%emt 0:01:24]} 40. Kg1 {[%emt 0:00:00]} Kh7 {[%emt 0:00:00]} 41. Qd2 {[%emt 0:01:17]} g6 {[%emt 0:01:59]} 42. Qf2 {[%emt 0:01:18]} Qd1+ {[%emt 0:02:23]} 43. Qf1 {[%emt 0:01:14]} Qxf1+ {[%emt 0:00:19]} 44. Kxf1 {[%emt 0:00:06]} f5 {[%emt 0:01:08]} 45. Ke1 {[%emt 0:00:17]} Kg7 {[%emt 0:00:42]} 46. Kd2 {[%emt 0:00:17]} Kf6 {[%emt 0:00:05]} 47. Kxd3 {[%emt 0:00:07]} Ke5 {[%emt 0:00:05]} 48. Ke3 {[%emt 0:00:31]} g5 {[%emt 0:00:15]} 49. h4 {[%emt 0:01:16]} gxh4 {[%emt 0:00:25]} 50. gxh4 {[%emt 0:00:04]} h5 0-1

[Event "EYTCC Open U18 2022"]
[Site "Thessaloniki"]
[Date "2022.07.16"]
[Round "5.38"]
[White "Georgiadis, Athanasios Kat"]
[Black "Betsakos, Haralampos"]
[Result "1-0"]
[ECO "B12"]
[WhiteElo "1689"]
[BlackElo "1183"]
[Annotator "NA"]
[PlyCount "103"]
[EventDate "2022.07.12"]
[EventType "team-tourn"]
[EventCountry "GRE"]
[SourceTitle "playchess.com"]
[Source "ChessBase"]
[SourceQuality "1"]
[WhiteTeam "Greece"]
[BlackTeam "Greece"]
[WhiteTeamCountry "GRE"]
[BlackTeamCountry "GRE"]
[TimeControl "40/5400+30:1800+30"]

1. e4 {[%emt 0:00:04]} c6 {[%emt 0:00:09]} 2. d4 {[%emt 0:00:05]} d5 {[%emt 0:00:03]} 3. e5 {[%emt 0:00:04]} Bf5 {[%emt 0:00:10]} 4. h4 {[%emt 0:00:06]} h6 {[%emt 0:01:20]} 5. g4 {[%emt 0:00:05]} Bh7 {[%emt 0:01:01]} 6. e6 {[%emt 0:00:05]} fxe6 {[%emt 0:08:47]} 7. Bd3 {[%emt 0:00:07]} Nf6 {[%emt 0:11:14]} 8. Bxh7 {[%emt 0:00:11]} Rxh7 {[%emt 0:05:39]} 9. Qd3 {[%emt 0:00:07]} Qd6 {[%emt 0:06:43]} 10. f4 {[%emt 0:01:48]} Rh8 {[%emt 0:06:42]} 11. Nf3 {[%emt 0:00:15]} Nbd7 {[%emt 0:04:29]} 12. Qg6+ {[%emt 0:01:43]} Kd8 {[%emt 0:00:17]} 13. Ne5 {[%emt 0:00:23]} Nxe5 {[%emt 0:06:17]} 14. fxe5 {[%emt 0:00:12]} Qc7 {[%emt 0:02:12]} 15. Nd2 {[%emt 0:12:21]} Nd7 {[%emt 0:08:51]} 16. Qxe6 {[%emt 0:00:47]} Kc8 {[%emt 0:05:42]} 17. Nb3 {[%emt 0:01:09]} b6 {[%emt 0:01:37]} 18. Bf4 {[%emt 0:03:58]} Kb7 {[%emt 0:01:50]} 19. a4 {[%emt 0:02:18]} Nb8 {[%emt 0:05:21]} 20. Qf5 {[%emt 0:06:48]} e6 {[%emt 0:05:54]} 21. Qxe6 {[%emt 0:00:13]} Be7 {[%emt 0:03:04]} 22. h5 {[%emt 0:04:03]} Qd7 {[%emt 0:02:20]} 23. Qxd7+ {[%emt 0:01:37]} Nxd7 {[%emt 0:00:08]} 24. O-O {[%emt 0:00:49]} Rhf8 {[%emt 0:01:32]} 25. a5 {[%emt 0:00:14]} c5 {[%emt 0:05:33]} 26. c3 {[%emt 0:02:18]} cxd4 {[%emt 0:01:25]} 27. a6+ {[%emt 0:02:30]} Kc8 {[%emt 0:01:58]} 28. cxd4 {[%emt 0:00:21]} Kd8 {[%emt 0:00:53]} 29. Be3 {[%emt 0:07:07]} Rc8 {[%emt 0:00:52]} 30. Nc1 {[%emt 0:12:48]} Rxf1+ {[%emt 0:00:54]} 31. Kxf1 {[%emt 0:00:08]} Nf8 {[%emt 0:00:30]} 32. Ne2 {[%emt 0:01:33]} Ne6 {[%emt 0:01:05]} 33. Nc3 {[%emt 0:00:51]} Nc7 {[%emt 0:00:21]} 34. Ke2 {[%emt 0:00:51]} Kd7 {[%emt 0:00:12]} 35. Kd3 {[%emt 0:02:42]} Rf8 {[%emt 0:00:37]} 36. Ne2 {[%emt 0:01:52]} Ne6 {[%emt 0:00:53]} 37. Ng3 {[%emt 0:03:46]} Rf3 {[%emt 0:00:49]} 38. Nf5 {[%emt 0:00:47]} Bg5 {[%emt 0:00:41]} 39. Ke2 {[%emt 0:01:01]} Rh3 {[%emt 0:01:04]} 40. Bxg5 {[%emt 0:00:00]} Nxg5 {[%emt 0:00:00]} 41. Nxg7 {[%emt 0:08:05]} Rg3 {[%emt 0:08:30]} 42. Rf1 {[%emt 0:04:02]} Rxg4 {[%emt 0:04:52]} 43. Rf6 {[%emt 0:02:04]} Rxd4 {[%emt 0:02:29]} 44. e6+ {[%emt 0:01:33]} Ke7 {[%emt 0:02:02]} 45. Rxh6 {[%emt 0:00:21]} Re4+ {[%emt 0:05:18]} 46. Kd3 {[%emt 0:00:09]} Rf4 {[%emt 0:08:13]} 47. Rg6 {[%emt 0:01:08]} Nh7 {[%emt 0:01:14]} 48. Ke3 {[%emt 0:02:18]} Rf6 {[%emt 0:01:04]} 49. Kd4 {[%emt 0:02:22]} Rxg6 {[%emt 0:01:07]} 50. hxg6 {[%emt 0:00:04]} Nf6 {[%emt 0:00:25]} 51. Ke5 {[%emt 0:00:50]} b5 {[%emt 0:00:40]} 52. Nf5+ 1-0

[Event "EYTCC Open U18 2022"]
[Site "Thessaloniki"]
[Date "2022.07.16"]
[Round "5.39"]
[White "Karkanas, Stylianos"]
[Black "Gerasopoulos, Nikolaos"]
[Result "0-1"]
[ECO "A03"]
[WhiteElo "1089"]
[BlackElo "1526"]
[Annotator "NA"]
[PlyCount "89"]
[EventDate "2022.07.12"]
[EventType "team-tourn"]
[EventCountry "GRE"]
[SourceTitle "playchess.com"]
[Source "ChessBase"]
[SourceQuality "1"]
[WhiteTeam "Greece"]
[BlackTeam "Greece"]
[WhiteTeamCountry "GRE"]
[BlackTeamCountry "GRE"]
[TimeControl "40/5400+30:1800+30"]

1. f4 {[%emt 0:00:05]} d5 {[%emt 0:00:31]} 2. Nf3 {[%emt 0:00:14]} c5 {[%emt 0:00:13]} 3. e3 {[%emt 0:00:23]} Nf6 {[%emt 0:00:22]} 4. b3 {[%emt 0:02:55]} Nc6 {[%emt 0:00:50]} 5. Bb2 {[%emt 0:00:36]} g6 {[%emt 0:00:19]} 6. c3 {[%emt 0:05:25]} Bg7 {[%emt 0:00:45]} 7. d4 {[%emt 0:00:42]} O-O {[%emt 0:01:16]} 8. Bd3 {[%emt 0:01:54]} b6 {[%emt 0:05:58]} 9. O-O {[%emt 0:02:22]} Bb7 {[%emt 0:00:55]} 10. Ne5 {[%emt 0:03:50]} Nxe5 {[%emt 0:11:16]} 11. fxe5 {[%emt 0:01:38]} Nd7 {[%emt 0:00:12]} 12. Nd2 {[%emt 0:07:59]} e6 {[%emt 0:00:49]} 13. e4 {[%emt 0:05:50]} Qg5 {[%emt 0:05:43]} 14. Nf3 {[%emt 0:09:10]} Qe3+ {[%emt 0:00:11]} 15. Rf2 {[%emt 0:08:54]} dxe4 {[%emt 0:00:10]} 16. Bb5 {[%emt 0:01:47]} exf3 {[%emt 0:01:14]} 17. Bxd7 {[%emt 0:01:21]} Rad8 {[%emt 0:00:15]} 18. Bb5 {[%emt 0:01:10]} fxg2 {[%emt 0:00:28]} 19. Bd3 {[%emt 0:02:06]} cxd4 {[%emt 0:00:39]} 20. cxd4 {[%emt 0:03:17]} f6 {[%emt 0:01:17]} 21. Bc4 {[%emt 0:05:20]} fxe5 {[%emt 0:00:16]} 22. Bxe6+ {[%emt 0:00:08]} Kh8 {[%emt 0:00:05]} 23. Qe2 {[%emt 0:01:56]} exd4 {[%emt 0:01:03]} 24. Qxe3 {[%emt 0:03:22]} dxe3 {[%emt 0:00:08]} 25. Bxg7+ {[%emt 0:00:28]} Kxg7 {[%emt 0:00:10]} 26. Re2 {[%emt 0:01:08]} Rf3 {[%emt 0:03:09]} 27. Bg4 {[%emt 0:04:15]} Rf1+ {[%emt 0:00:14]} 28. Rxf1 {[%emt 0:00:19]} gxf1=Q+ {[%emt 0:00:10]} 29. Kxf1 {[%emt 0:00:15]} Ba6 {[%emt 0:00:11]} 30. Ke1 {[%emt 0:01:10]} Bxe2 {[%emt 0:00:08]} 31. Kxe2 {[%emt 0:00:16]} Rd2+ {[%emt 0:00:04]} 32. Kxe3 {[%emt 0:00:23]} Rxa2 {[%emt 0:00:06]} 33. h3 {[%emt 0:00:31]} Kf6 {[%emt 0:00:06]} 34. Kd4 {[%emt 0:00:23]} Kg5 {[%emt 0:00:12]} 35. Kc4 {[%emt 0:00:25]} Kh4 {[%emt 0:00:09]} 36. b4 {[%emt 0:00:59]} g5 {[%emt 0:00:30]} 37. Kb3 {[%emt 0:00:17]} Rf2 {[%emt 0:00:09]} 38. Ka4 {[%emt 0:00:41]} a5 {[%emt 0:00:27]} 39. bxa5 {[%emt 0:00:28]} bxa5 {[%emt 0:00:10]} 40. Kxa5 {[%emt 0:00:00]} h5 {[%emt 0:00:00]} 41. Be6 {[%emt 0:00:22]} g4 {[%emt 0:00:17]} 42. hxg4 {[%emt 0:00:22]} hxg4 {[%emt 0:00:10]} 43. Kb4 {[%emt 0:00:26]} g3 {[%emt 0:00:07]} 44. Bd5 {[%emt 0:00:15]} g2 {[%emt 0:00:08]} 45. Bxg2 {[%emt 0:00:09]} 0-1

[Event "EYTCC Open U18 2022"]
[Site "Thessaloniki"]
[Date "2022.07.16"]
[Round "5.40"]
[White "Skodras, Marios Konstantinos"]
[Black "Maki, Eftychia Maria"]
[Result "1-0"]
[ECO "C71"]
[WhiteElo "1446"]
[BlackElo "1157"]
[Annotator "NA"]
[PlyCount "67"]
[EventDate "2022.07.12"]
[EventType "team-tourn"]
[EventCountry "GRE"]
[SourceTitle "playchess.com"]
[Source "ChessBase"]
[SourceQuality "1"]
[WhiteTeam "Greece"]
[BlackTeam "Greece"]
[WhiteTeamCountry "GRE"]
[BlackTeamCountry "GRE"]
[TimeControl "40/5400+30:1800+30"]

1. e4 {[%emt 0:00:10]} e5 {[%emt 0:00:05]} 2. Nf3 {[%emt 0:00:08]} Nc6 {[%emt 0:00:08]} 3. Bb5 {[%emt 0:00:00]} a6 {[%emt 0:00:16]} 4. Ba4 {[%emt 0:00:00]} d6 {[%emt 0:02:15]} 5. h3 Bd7 6. O-O {[%emt 0:00:40]} Nf6 {[%emt 0:00:56]} 7. Re1 Be7 8. c3 {[%emt 0:00:31]} O-O {[%emt 0:02:21]} 9. d4 {[%emt 0:00:20]} exd4 {[%emt 0:03:11]} 10. cxd4 {[%emt 0:00:29]} d5 {[%emt 0:06:58]} 11. e5 {[%emt 0:00:36]} Ne4 {[%emt 0:05:09]} 12. Bc2 {[%emt 0:00:22]} Ng5 {[%emt 0:02:07]} 13. Nxg5 {[%emt 0:02:51]} Bxg5 {[%emt 0:00:29]} 14. f4 {[%emt 0:00:18]} Be7 {[%emt 0:06:23]} 15. Nc3 {[%emt 0:01:41]} Bh4 {[%emt 0:06:06]} 16. Re3 {[%emt 0:02:12]} Nb4 {[%emt 0:02:12]} 17. Bb1 {[%emt 0:00:17]} Bc8 {[%emt 0:02:38]} 18. f5 {[%emt 0:04:09]} Bg5 {[%emt 0:10:26]} 19. Rg3 {[%emt 0:01:02]} Bxc1 {[%emt 0:01:14]} 20. f6 {[%emt 0:06:46]} g6 {[%emt 0:01:37]} 21. Qxc1 {[%emt 0:00:14]} Kh8 {[%emt 0:00:15]} 22. Qh6 Rg8 {[%emt 0:00:43]} 23. Rg5 {[%emt 0:01:42]} Qf8 {[%emt 0:02:33]} 24. Qh4 {[%emt 0:00:17]} h6 {[%emt 0:04:22]} 25. a3 {[%emt 0:00:43]} Nc6 {[%emt 0:00:52]} 26. Nxd5 {[%emt 0:03:56]} Kh7 {[%emt 0:03:36]} 27. Nxc7 {[%emt 0:03:59]} Rb8 {[%emt 0:00:58]} 28. Rh5 {[%emt 0:06:58]} Rh8 {[%emt 0:02:20]} 29. Kh2 {[%emt 0:04:07]} Kg8 {[%emt 0:02:30]} 30. d5 {[%emt 0:00:12]} Nxe5 {[%emt 0:05:38]} 31. Rxe5 {[%emt 0:00:13]} Qd6 {[%emt 0:00:44]} 32. Qg3 {[%emt 0:00:25]} Kh7 {[%emt 0:01:56]} 33. Bxg6+ {[%emt 0:00:15]} fxg6 {[%emt 0:00:32]} 34. Re7+ {[%emt 0:00:02]} 1-0